fUST/lending_fUST_20240807
["ID","MTS","AMOUNT","RATE_DAILY","PERIOD"]
[334321321,1722971440409,-500.0,0.00035238,7]
[334321322,1722971440419,-500.0,0.00035238,7]
[334321323,1722971440429,-397.3370612,0.00035238,7]
[334321331,1722971440928,-102.6629388,0.00035238,7]
[334321332,1722971440938,-500.0,0.00035238,7]
[334321333,1722971440947,-500.0,0.00035238,7]
[334321334,1722971440956,-500.0,0.00035238,7]
[334321335,1722971440965,-500.0,0.00035238,7]
[334321336,1722971440975,-500.0,0.00035238,7]
[334321337,1722971440984,-500.0,0.00035238,7]
[334321338,1722971440993,-500.0,0.00035238,7]
[334321339,1722971441007,-500.0,0.00035238,7]
[334321340,1722971441018,-500.0,0.00035238,7]
[334321341,1722971441030,-500.0,0.00035238,7]
[334321342,1722971441040,-500.0,0.00035238,7]
[334321343,1722971441052,-500.0,0.00035238,7]
[334321344,1722971441063,-500.0,0.00035238,7]
[334321345,1722971441072,-500.0,0.00035238,7]
[334321346,1722971441082,-500.0,0.00035238,7]
[334321347,1722971441091,-500.0,0.00035238,7]
[334321348,1722971441100,-500.0,0.00035238,7]
[334321349,1722971441109,-500.0,0.00035238,7]
[334321350,1722971441119,-500.0,0.00035238,7]
[334321351,1722971441129,-500.0,0.00035238,7]
[334321352,1722971441138,-19435.2853801,0.00035239,4]
[334321353,1722971441148,-1411.0,0.00035302,2]
[334321354,1722971441157,-218.21,0.00035606,3]
[334321355,1722971441166,-4394.2,0.00035606,3]
[334321356,1722971441176,-38870.5707601,0.00035606,4]
[334321357,1722971441185,-168.20238963,0.00035615,7]
[334321358,1722971441197,-298.14466243,0.00035615,7]
[334321359,1722971441206,-500.0,0.00035615,7]
[334321360,1722971441216,-500.0,0.00035615,7]
[334321361,1722971441227,-160.39871741,0.00035615,7]
[334321362,1722971441236,-500.0,0.00035615,7]
[334321363,1722971441246,-500.0,0.00035615,7]
[334321364,1722971441257,-500.0,0.00035615,7]
[334321365,1722971441266,-500.0,0.00035615,7]
[334321366,1722971441277,-500.0,0.00035615,7]
[334321367,1722971441287,-386.81352447,0.00035615,7]
[334321368,1722971441297,-151.0,0.00035616,7]
[334321369,1722971441307,-151.0,0.00035616,7]
[334321370,1722971441316,-151.0,0.00035616,7]
[334321371,1722971441326,-151.0,0.00035616,7]
[334321372,1722971441335,-151.0,0.00035616,7]
[334321373,1722971441345,-151.0,0.00035616,7]
[334321374,1722971441356,-151.0,0.00035616,7]
[334321375,1722971441366,-151.0,0.00035616,7]
[334321376,1722971441376,-151.0,0.00035616,7]
[334321377,1722971441387,-151.0,0.00035616,7]
[334321378,1722971441397,-151.0,0.00035616,7]
[334321379,1722971441408,-151.0,0.00035616,7]
[334321380,1722971441419,-160.18008,0.00035616,7]
[334321381,1722971441432,-156.559315,0.00035616,7]
[334321382,1722971441444,-160.18008,0.00035616,7]
[334321383,1722971441455,-156.559315,0.00035616,7]
[334321384,1722971441465,-151.0,0.00035616,7]
[334321385,1722971441474,-151.0,0.00035616,7]
[334321386,1722971441484,-2165.88238932,0.00035885,2]
[334321387,1722971441494,-151.0,0.00036685,120]
[334321388,1722971441508,-430.0507029,0.00037507,2]
[334321389,1722971441517,-262.86385,0.00037507,7]
[334321390,1722971441527,-156.559315,0.00037507,7]
[334321391,1722971441536,-156.559315,0.00037507,7]
[334321392,1722971441546,-151.0,0.00037507,7]
[334321393,1722971441555,-151.0,0.00037507,7]
[334321394,1722971441564,-151.0,0.00037507,7]
[334321395,1722971441574,-151.0,0.00037507,7]
[334321396,1722971441584,-151.0,0.00037507,7]
[334321397,1722971441594,-294.3442761,0.00037808,2]
[334321398,1722971441603,-210.5427304,0.00037808,2]
[334321399,1722971441612,-151.0,0.00038115,7]
[334321400,1722971441621,-151.0,0.00038115,7]
[334321401,1722971441631,-988.03,0.00038125,14]
[334321402,1722971441640,-6860.81,0.00038125,3]
[334321403,1722971441650,-988.03,0.00038135,14]
[334321404,1722971441660,-311.734865,0.00038199,7]
[334321405,1722971441669,-311.734865,0.00038199,7]
[334321406,1722971441679,-247.763021,0.00038199,7]
[334321407,1722971441688,-151.0,0.00038199,7]
[334321408,1722971441698,-151.0,0.00038199,7]
[334321409,1722971441708,-160.18008,0.00038199,7]
[334321410,1722971441719,-160.18008,0.00038199,7]
[334321411,1722971441728,-19435.2853801,0.00038214,4]
[334321412,1722971441737,-151.0,0.00038224,7]
[334321413,1722971441746,-151.0,0.00038224,7]
[334321414,1722971441757,-151.0,0.00038224,7]
[334321415,1722971441766,-151.0,0.00038234,7]
[334321416,1722971441776,-261.183226,0.00038234,7]
[334321417,1722971441785,-261.183226,0.00038234,7]
[334321418,1722971441794,-19435.2853801,0.00038236,4]
[334321419,1722971441803,-151.0,0.00038236,7]
[334321420,1722971441812,-151.0,0.00038236,7]
[334321421,1722971441822,-151.0,0.00038236,7]
[334321422,1722971441831,-1000.0,0.00038245,45]
[334321423,1722971441840,-988.03,0.00038245,14]
[334321424,1722971441850,-1917.21111324,0.00038246,5]
[334321434,1722971443894,-294.13159854,0.00021916,2]
[334321435,1722971443904,-16690.66818144,0.00038246,5]
[334321460,1722971447032,-270.81688255,0.00038246,5]
[334321461,1722971447044,-8252.52129952,0.00038246,5]
[334321462,1722971447055,-1563.999095,0.00038246,5]
[334321463,1722971447068,-1057.369705,0.00038246,5]
[334321464,1722971447080,-3802.11696464,0.00038246,5]
[334321465,1722971447089,-1134.68139062,0.00038246,4]
[334321471,1722971547057,225.91324346,0.00027,120]
[334321474,1722971555181,3302.39346144,0.00027,120]
[334321486,1722971792242,171.269404,0.00014247,2]
[334321487,1722971820067,1630.23174338,0.00014247,2]
[334321489,1722971829368,3332.0,0.00014247,2]
[334321501,1722972359697,281.26808939,0.00015954,2]
[334321503,1722972401883,167.70767,0.00014247,2]
[334321505,1722972426114,-300.99621399,0.00016159,2]
[334321506,1722972426135,-603.79164827,0.00017269,2]
[334321507,1722972426157,-964.94913015,0.00019547,2]
[334321508,1722972436109,-209.67717263,0.00019547,2]
[334321509,1722972497251,395.62588275,0.000123,2]
[334321510,1722972545118,-5236.41679691,0.00019451,2]
[334321511,1722972545156,-300.0,0.00019476,2]
[334321512,1722972545179,-154.77557542,0.00019477,2]
[334321513,1722972545201,-200.22595135,0.00019477,2]
[334321514,1722972545222,-154.59033561,0.00019477,4]
[334321515,1722972545243,-309.1495329,0.00019477,2]
[334321516,1722972545265,-196.76920381,0.00019477,2]
[334321517,1722972558136,-302.59507641,0.00019451,2]
[334321518,1722972560126,-4933.8217205,0.00019451,2]
[334321519,1722972560146,-156.61103376,0.00019451,2]
[334321520,1722972560167,-217.1431193,0.00019477,2]
[334321521,1722972560186,-533.92328189,0.00019477,2]
[334321522,1722972560209,-155.20656649,0.00019477,2]
[334321523,1722972560231,-174.52933502,0.00019477,2]
[334321524,1722972560252,-154.77557542,0.00019477,2]
[334321525,1722972560272,-156.8188046,0.00019547,2]
[334321526,1722972560298,-403.81861762,0.00019547,2]
[334321527,1722972560320,-206.444818,0.0001981,2]
[334321528,1722972560341,-519.59956575,0.00019999,2]
[334321529,1722972560362,-412.94081029,0.00019999,2]
[334321530,1722972560382,-154.93035868,0.00019999,2]
[334321531,1722972560403,-664.37201116,0.00019999,2]
[334321532,1722972560424,-1443.89362386,0.0002,2]
[334321533,1722972560445,-377.79686781,0.0002,2]
[334321534,1722972560467,-500.0,0.00020164,2]
[334321535,1722972560489,-500.0,0.00020164,2]
[334321536,1722972560511,-500.0,0.00020164,2]
[334321537,1722972560532,-208.00449981,0.00020164,2]
[334321538,1722972560558,-500.0,0.00020164,2]
[334321539,1722972560581,-500.0,0.00020164,2]
[334321540,1722972560602,-392.18888643,0.00020164,2]
[334321541,1722972560624,-500.0,0.00020164,2]
[334321542,1722972560646,-500.0,0.00020164,2]
[334321543,1722972560669,-500.0,0.00020164,2]
[334321544,1722972560691,-500.0,0.00020164,2]
[334321545,1722972560713,-500.0,0.00020164,2]
[334321546,1722972560735,-545.68955079,0.00020164,2]
[334321547,1722972560760,-17835.56711229,0.00020165,2]
[334321548,1722972564180,-7054.43288771,0.00020165,2]
[334321549,1722972564201,-201.4758121,0.0002028,2]
[334321550,1722972564222,-2848.36326452,0.0002028,2]
[334321551,1722972564242,-694.1093999,0.0002028,2]
[334321552,1722972564264,-177.38649127,0.0002028,2]
[334321553,1722972564285,-189.2404246,0.00020713,2]
[334321554,1722972564310,-250.0,0.00020782,2]
[334321555,1722972564333,-250.0,0.00020839,2]
[334321556,1722972564355,-250.0,0.00020896,2]
[334321557,1722972564377,-3000.0,0.00020924,2]
[334321558,1722972564399,-1333.62869007,0.00020948,2]
[334321559,1722972564423,-250.0,0.00020953,2]
[334321560,1722972564444,-1108.76834352,0.00020999,2]
[334321561,1722972564467,-492.40339763,0.00020999,2]
[334321562,1722972564491,-250.0,0.0002101,2]
[334321563,1722972564513,-1091.57771247,0.00021011,2]
[334321564,1722972564534,-271.46275103,0.00021011,2]
[334321565,1722972564760,-250.0,0.00021067,2]
[334321566,1722972564783,-250.0,0.00021124,2]
[334321567,1722972564808,-250.0,0.00021181,2]
[334321568,1722972564830,-250.0,0.00021238,2]
[334321569,1722972564853,-250.0,0.00021295,2]
[334321570,1722972564877,-250.0,0.00021352,2]
[334321571,1722972564900,-250.0,0.00021409,2]
[334321572,1722972564921,-420.0,0.00021424,2]
[334321573,1722972564946,-250.0,0.00021466,2]
[334321574,1722972564968,-250.0,0.00021523,2]
[334321575,1722972564994,-250.0,0.0002158,2]
[334321576,1722972565015,-176.26702348,0.00021599,2]
[334321577,1722972565042,-250.0,0.00021637,2]
[334321578,1722972565065,-250.0,0.00021694,2]
[334321579,1722972565087,-250.0,0.00021751,2]
[334321580,1722972565110,-250.0,0.00021808,2]
[334321581,1722972565131,-203.71830668,0.00021816,2]
[334321582,1722972565152,-250.0,0.00021865,2]
[334321583,1722972565174,-587.0,0.00023566,2]
[334321584,1722972565195,-1333.62869002,0.0002389,2]
[334321585,1722972565217,-402.3465429,0.00025,2]
[334321586,1722972565237,-2059.47395771,0.00025,2]
[334321587,1722972565258,-167.70767,0.00025405,2]
[334321588,1722972565280,-823.0,0.00025923,2]
[334321589,1722972565312,-881.61577024,0.00026604,2]
[334321590,1722972565333,-170.589378,0.00026731,2]
[334321591,1722972565354,-1333.62869002,0.00026832,2]
[334321592,1722972565374,-1262.406341,0.00027,2]
[334321593,1722972565395,-329.54004567,0.00027,2]
[334321594,1722972565415,-1176.16930961,0.00027,2]
[334321595,1722972565436,-1626.04191113,0.00027,2]
[334321596,1722972565458,-294.12454179,0.00027396,2]
[334321597,1722972565480,-621.06469965,0.00027495,2]
[334321598,1722972565503,-576.0,0.00028515,2]
[334321599,1722972565525,-206.444818,0.00029714,2]
[334321600,1722972565549,-1333.62869002,0.00029774,2]
[334321601,1722972565574,-1085.38915119,0.00029854,2]
[334321663,1722972632109,-154.91162192,0.00019547,2]
[334321665,1722972632120,-951.69950854,0.00019999,2]
[334321667,1722972632130,-300.0,0.00029853,2]
[334321669,1722972632140,-12491.65517184,0.00029854,2]
[334321670,1722972632152,-10789.42913913,0.00029854,2]
[334321671,1722972632162,-151.0,0.0003,120]
[334321672,1722972632174,-2289.19063033,0.00031,2]
[334321673,1722972632184,-300.0,0.0003218,2]
[334321674,1722972632195,-191.66060924,0.00032502,2]
[334321675,1722972632205,-1274.27,0.00032602,14]
[334321676,1722972632215,-1274.27,0.00032602,14]
[334321677,1722972632224,-445.74506417,0.00032626,2]
[334321678,1722972632234,-500.0,0.00032716,2]
[334321679,1722972632243,-312.27910218,0.00032716,2]
[334321680,1722972632253,-1333.62869002,0.00032717,2]
[334321681,1722972632263,-46878.80986173,0.00032717,4]
[334321682,1722972633200,-2957.82427606,0.00032717,4]
[334321725,1722972640568,-309.58458352,0.00027396,2]
[334321726,1722972640584,-418.64541648,0.00032179,2]
[334321733,1722972642960,-86.43120028,0.00032179,2]
[334321734,1722972642969,-5509.19857078,0.00032717,4]
[334321735,1722972642982,-831.38916753,0.00032717,4]
[334321737,1722972642991,-5717.34,0.00032717,3]
[334321739,1722972643002,-4764.45,0.00032717,3]
[334321741,1722972643012,-316.02683671,0.00032726,2]
[334321743,1722972643021,-178.50843311,0.00032726,2]
[334321744,1722972643032,-500.0,0.00032726,2]
[334321745,1722972643042,-162.32694259,0.00032726,2]
[334321746,1722972643052,-406.31479769,0.00032726,2]
[334321747,1722972643075,-93.68520231,0.00032726,2]
[334321748,1722972643085,-48.69719723,0.00032726,2]
[334321749,1722972643097,-451.30280277,0.00032726,2]
[334321750,1722972643107,-500.0,0.00032726,2]
[334321751,1722972643117,-500.0,0.00032726,2]
[334321752,1722972643128,-500.0,0.00032726,2]
[334321754,1722972643137,-568.59537153,0.00032726,2]
[334321757,1722972643148,-1274.27,0.00032726,14]
[334321759,1722972643157,-17312.93970553,0.00032727,2]
[334321761,1722972643169,-1590.4,0.00032727,2]
[334321807,1722972646048,-154.59033561,0.00021916,4]
[334321808,1722972646058,-1201.9485789,0.00030696,2]
[334321809,1722972646067,-4248.92349617,0.00032727,2]
[334321810,1722972646077,-14517.3033902,0.00032727,4]
[334321811,1722972646086,-3970.38,0.00032794,3]
[334321812,1722972646097,-5670.9130827,0.00032804,21]
[334321813,1722972646107,-151.0,0.00032804,7]
[334321814,1722972646117,-152.741646,0.00032804,7]
[334321815,1722972646128,-151.0,0.00032804,7]
[334321816,1722972646138,-151.0,0.00032804,7]
[334321818,1722972646148,-151.0,0.00032804,7]
[334321819,1722972646158,-151.0,0.00032804,7]
[334321820,1722972646167,-500.0,0.00032804,10]
[334321821,1722972646183,-500.0,0.00032804,10]
[334321822,1722972646192,-500.0,0.00032804,10]
[334321823,1722972646202,-500.0,0.00032804,10]
[334321824,1722972646212,-512.67171979,0.00032804,10]
[334321825,1722972646222,-355039.26894597,0.00032804,60]
[334321826,1722972646232,-395.74,0.000329,14]
[334321827,1722972646243,-300.0,0.00034,120]
[334321828,1722972646253,-445.74506416,0.00034031,2]
[334321829,1722972646262,-500.0,0.0003406,5]
[334321830,1722972646273,-169.92,0.000341,30]
[334321831,1722972646283,-151.0,0.00034603,120]
[334321832,1722972646292,-445.74506416,0.00035436,2]
[334321833,1722972646302,-500.0,0.00035853,5]
[334321834,1722972646312,-1274.27,0.00035996,14]
[334321835,1722972646324,-150.0,0.00035997,2]
[334321836,1722972646333,-506.0,0.00035997,2]
[334321837,1722972646343,-1411.0,0.00035997,2]
[334321838,1722972646353,-837.11590473,0.00036186,2]
[334321839,1722972646363,-892.63034129,0.00036186,4]
[334321840,1722972646372,-2277.87309117,0.00036186,3]
[334321841,1722972646384,-254.6350379,0.00036186,4]
[334321842,1722972646394,-7035.49281734,0.00036186,4]
[334321843,1722972646404,-7035.49281734,0.00036186,4]
[334321844,1722972646414,-167.70767,0.00036563,2]
[334321845,1722972646424,-445.74506416,0.00036841,2]
[334321846,1722972646437,-3177.68724717,0.00037333,2]
[334321847,1722972646446,-153.0,0.00037534,2]
[334321848,1722972646456,-455.4154248,0.00037534,2]
[334321849,1722972646465,-153.0,0.00037534,2]
[334321850,1722972646475,-169.92,0.000376,30]
[334321851,1722972646485,-500.0,0.0003774,5]
[334321852,1722972646495,-3177.68724718,0.00037774,2]
[334321853,1722972646504,-395.74,0.000378,14]
[334321854,1722972646514,-4033.46410639,0.0003789,5]
[334321855,1722972646523,-2291.60556789,0.00037997,120]
[334321856,1722972646533,-526.57713193,0.00038,2]
[334321857,1722972646543,-542.7372324,0.00038082,2]
[334321858,1722972646554,-151.0,0.00038142,15]
[334321859,1722972646570,-151.0,0.00038142,15]
[334321860,1722972646589,-11828.60889155,0.00038156,14]
[334321861,1722972646607,-18460.96960309,0.00038156,5]
[334321862,1722972646625,-37008.80320885,0.00038156,5]
[334321863,1722972646642,-151.0,0.00038156,7]
[334321864,1722972646657,-151.0,0.00038156,7]
[334321865,1722972646673,-151.0,0.00038156,7]
[334321866,1722972646688,-151.0,0.00038156,7]
[334321867,1722972646703,-151.0,0.00038156,7]
[334321868,1722972646719,-1108.84033,0.00038196,7]
[334321869,1722972646732,-1108.84033,0.00038196,7]
[334321870,1722972646744,-151.0,0.00038196,7]
[334321871,1722972646759,-151.0,0.00038196,7]
[334321872,1722972646772,-151.0,0.00038196,7]
[334321873,1722972646785,-151.0,0.00038196,7]
[334321874,1722972646796,-444.548727,0.00038196,7]
[334321875,1722972646809,-444.548727,0.00038196,7]
[334321876,1722972646823,-151.0,0.00038196,7]
[334321877,1722972646838,-151.0,0.00038196,7]
[334321878,1722972646851,-151.0,0.00038196,7]
[334321879,1722972646866,-151.0,0.00038196,7]
[334321880,1722972646882,-268.929929,0.00038196,7]
[334321881,1722972646896,-718.942964,0.00038196,7]
[334321882,1722972646907,-718.942964,0.00038196,7]
[334321883,1722972646918,-151.0,0.00038196,7]
[334321884,1722972646934,-156.024906,0.00038196,7]
[334321885,1722972646948,-156.024906,0.00038196,7]
[334321886,1722972646961,-214.324932,0.00038196,7]
[334321887,1722972646973,-214.324932,0.00038196,7]
[334321888,1722972646986,-213.246932,0.00038196,7]
[334321889,1722972647001,-213.246932,0.00038196,7]
[334321890,1722972647013,-150.112233,0.000382,6]
[334321891,1722972647023,-150.112233,0.000382,9]
[334321892,1722972647035,-150.112233,0.000382,10]
[334321893,1722972647050,-150.112233,0.000382,8]
[334321894,1722972647062,-973.2266038,0.00038205,45]
[334321895,1722972647073,-1274.27,0.00038205,14]
[334321896,1722972647086,-151.0,0.00038206,7]
[334321897,1722972647097,-151.0,0.00038206,7]
[334321898,1722972647109,-151.0,0.00038206,7]
[334321899,1722972647120,-151.0,0.00038206,7]
[334321900,1722972647132,-151.0,0.00038206,7]
[334321901,1722972647144,-231.38037,0.00038206,7]
[334321902,1722972647155,-151.0,0.00038206,7]
[334321903,1722972647167,-151.0,0.00038206,7]
[334321904,1722972647179,-371.161379,0.00038206,7]
[334321905,1722972647191,-151.0,0.00038206,7]
[334321906,1722972647203,-280.364904,0.00038206,7]
[334321907,1722972647216,-280.364904,0.00038206,7]
[334321908,1722972647228,-28088.610938,0.00038235,4]
[334321909,1722972647241,-1274.27,0.00038235,14]
[334321910,1722972647254,-151.0,0.00038235,7]
[334321911,1722972647267,-151.0,0.00038235,7]
[334321912,1722972647279,-151.0,0.00038235,7]
[334321913,1722972647291,-151.0,0.00038235,7]
[334321914,1722972647304,-2000.0,0.00038236,2]
[334321915,1722972647316,-151.0,0.00038245,7]
[334321916,1722972647328,-151.0,0.00038245,7]
[334321917,1722972647341,-151.0,0.00038245,7]
[334321918,1722972647353,-151.0,0.00038245,7]
[334321919,1722972647365,-151.0,0.00038245,7]
[334321920,1722972647377,-151.0,0.00038245,7]
[334321921,1722972647389,-371.161379,0.00038245,7]
[334321922,1722972647401,-151.0,0.00038245,7]
[334321923,1722972647413,-280.364904,0.00038245,7]
[334321924,1722972647430,-280.364904,0.00038245,7]
[334321925,1722972647442,-1108.84033,0.00038245,7]
[334321926,1722972647455,-1108.84033,0.00038245,7]
[334321927,1722972647467,-151.0,0.00038245,7]
[334321928,1722972647479,-151.0,0.00038245,7]
[334321929,1722972647490,-151.0,0.00038245,7]
[334321930,1722972647502,-444.548727,0.00038245,7]
[334321931,1722972647514,-444.548727,0.00038245,7]
[334321932,1722972647527,-310.0,0.00038245,30]
[334321933,1722972647539,-310.0,0.00038245,30]
[334321934,1722972647551,-310.0,0.00038245,30]
[334321935,1722972647563,-452.655239,0.00038245,30]
[334321936,1722972647575,-718.942964,0.00038245,7]
[334321937,1722972647592,-718.942964,0.00038245,7]
[334321938,1722972647604,-151.0,0.00038245,7]
[334321939,1722972647615,-156.024906,0.00038245,7]
[334321940,1722972647628,-156.024906,0.00038245,7]
[334321941,1722972647639,-214.324932,0.00038245,7]
[334321942,1722972647650,-214.324932,0.00038245,7]
[334321943,1722972647662,-1274.27,0.00038245,14]
[334321944,1722972647676,-1274.27,0.00038245,14]
[334321945,1722972647689,-213.246932,0.00038245,7]
[334321946,1722972647701,-213.246932,0.00038245,7]
[334321947,1722972647713,-56177.2218761,0.00038246,4]
[334321948,1722972647725,-10000.0,0.00038246,30]
[334321949,1722972647737,-151.26329,0.00038246,7]
[334321950,1722972647749,-151.0,0.00038246,7]
[334321951,1722972647761,-151.0,0.00038246,7]
[334321952,1722972647773,-151.0,0.00038246,7]
[334321953,1722972647785,-151.0,0.00038246,7]
[334321954,1722972647797,-151.0,0.00038246,7]
[334321955,1722972647808,-151.0,0.00038246,7]
[334321956,1722972647820,-151.0,0.00038246,7]
[334321957,1722972647831,-151.0,0.00038246,7]
[334321958,1722972647843,-371.161379,0.00038246,7]
[334321959,1722972647855,-151.0,0.00038246,7]
[334321960,1722972647866,-371.161379,0.00038246,7]
[334321961,1722972647878,-151.0,0.00038246,7]
[334321962,1722972647890,-280.364904,0.00038246,7]
[334321963,1722972647902,-280.364904,0.00038246,7]
[334321964,1722972647913,-1108.84033,0.00038246,7]
[334321965,1722972647925,-1108.84033,0.00038246,7]
[334321966,1722972647939,-151.0,0.00038246,7]
[334321967,1722972647951,-151.0,0.00038246,7]
[334321968,1722972647963,-151.0,0.00038246,7]
[334321969,1722972647976,-445.74506416,0.00038246,2]
[334321970,1722972647988,-444.548727,0.00038246,7]
[334321971,1722972648000,-444.548727,0.00038246,7]
[334321972,1722972648013,-718.942964,0.00038246,7]
[334321973,1722972648024,-718.942964,0.00038246,7]
[334321974,1722972648036,-151.0,0.00038246,7]
[334321975,1722972648048,-156.024906,0.00038246,7]
[334321976,1722972648060,-156.024906,0.00038246,7]
[334321977,1722972648072,-214.324932,0.00038246,7]
[334321978,1722972648084,-214.324932,0.00038246,7]
[334321979,1722972648096,-213.246932,0.00038246,7]
[334321980,1722972648108,-213.246932,0.00038246,7]
[334321981,1722972648120,-151.0,0.00038246,7]
[334321982,1722972648132,-151.0,0.00038246,7]
[334321983,1722972648143,-151.0,0.00038246,7]
[334321984,1722972648156,-151.0,0.00038246,7]
[334321985,1722972648168,-1274.27,0.00038255,14]
[334321986,1722972648182,-1274.27,0.00038255,14]
[334321987,1722972648194,-1274.27,0.00038255,14]
[334321988,1722972648206,-1274.27,0.00038255,14]
[334321989,1722972648218,-151.0,0.00038256,7]
[334321990,1722972648229,-151.0,0.00038256,7]
[334321991,1722972648238,-151.0,0.00038256,7]
[334321992,1722972648248,-151.0,0.00038256,7]
[334321993,1722972648259,-371.161379,0.00038256,7]
[334321994,1722972648269,-151.0,0.00038256,7]
[334321995,1722972648278,-159.03113,0.00038256,7]
[334321996,1722972648288,-371.161379,0.00038256,7]
[334321997,1722972648297,-151.0,0.00038256,7]
[334321998,1722972648307,-280.364904,0.00038256,7]
[334321999,1722972648317,-151.0,0.00038256,7]
[334322000,1722972648327,-280.364904,0.00038256,7]
[334322001,1722972648337,-156.024906,0.00038256,7]
[334322002,1722972648347,-156.024906,0.00038256,7]
[334322003,1722972648357,-214.324932,0.00038256,7]
[334322004,1722972648367,-214.324932,0.00038256,7]
[334322005,1722972648377,-213.246932,0.00038256,7]
[334322006,1722972648388,-213.246932,0.00038256,7]
[334322007,1722972648689,-151.0,0.00038256,7]
[334322008,1722972648717,-151.0,0.00038256,7]
[334322009,1722972648736,-151.0,0.00038256,7]
[334322010,1722972648746,-151.0,0.00038256,7]
[334322011,1722972648756,-150.112233,0.000383,9]
[334322012,1722972648765,-150.112233,0.000383,7]
[334322013,1722972648775,-150.112233,0.000383,5]
[334322014,1722972648785,-150.112233,0.000383,10]
[334322015,1722972648795,-150.112233,0.000383,10]
[334322016,1722972648806,-150.112233,0.000383,9]
[334322017,1722972648815,-905.0,0.000383,2]
[334322018,1722972648825,-1274.27,0.00038335,14]
[334322019,1722972648834,-1274.27,0.00038335,14]
[334322020,1722972648846,-151.0,0.00038336,7]
[334322021,1722972648856,-151.0,0.00038336,7]
[334322022,1722972648865,-151.0,0.00038336,7]
[334322023,1722972648875,-371.161379,0.00038336,7]
[334322024,1722972648885,-371.161379,0.00038336,7]
[334322025,1722972648895,-371.161379,0.00038336,7]
[334322026,1722972648904,-371.161379,0.00038336,7]
[334322027,1722972648914,-280.364904,0.00038336,7]
[334322028,1722972648923,-260.83996,0.00038336,7]
[334322029,1722972648935,-280.364904,0.00038336,7]
[334322030,1722972648945,-280.364904,0.00038336,7]
[334322031,1722972648954,-280.364904,0.00038336,7]
[334322032,1722972648964,-1108.84033,0.00038336,7]
[334322033,1722972648975,-1108.84033,0.00038336,7]
[334322034,1722972648985,-151.0,0.00038336,7]
[334322035,1722972648994,-151.0,0.00038336,7]
[334322036,1722972649005,-444.548727,0.00038336,7]
[334322037,1722972649015,-444.548727,0.00038336,7]
[334322038,1722972649025,-718.942964,0.00038336,7]
[334322039,1722972649036,-718.942964,0.00038336,7]
[334322040,1722972649045,-151.0,0.00038336,7]
[334322041,1722972649055,-156.024906,0.00038336,7]
[334322042,1722972649065,-156.024906,0.00038336,7]
[334322043,1722972649074,-214.324932,0.00038336,7]
[334322044,1722972649084,-214.324932,0.00038336,7]
[334322045,1722972649094,-213.246932,0.00038336,7]
[334322046,1722972649104,-213.246932,0.00038336,7]
[334322047,1722972649115,-151.0,0.00038345,7]
[334322048,1722972649126,-151.0,0.00038345,7]
[334322049,1722972649136,-151.0,0.00038345,7]
[334322050,1722972649146,-297.881273,0.00038345,7]
[334322051,1722972649155,-28088.610938,0.00038345,4]
[334322052,1722972649165,-28088.610938,0.00038346,4]
[334322053,1722972649175,-56177.2218761,0.00038346,4]
[334322054,1722972649190,-477.46183412,0.00038346,4]
[334322055,1722972649200,-1108.84033,0.00038346,7]
[334322056,1722972649210,-1108.84033,0.00038346,7]
[334322057,1722972649220,-151.0,0.00038346,7]
[334322058,1722972649231,-151.0,0.00038346,7]
[334322059,1722972649241,-444.548727,0.00038346,7]